[Event "French-ch U16-U18 2024"]
[Site "Agen"]
[Date "2024.04.15"]
[Round "2.17"]
[White "Razafindratsima, Timothe"]
[Black "Gervais, Fabien"]
[Result "1-0"]
[ECO "C60"]
[WhiteElo "2438"]
[BlackElo "1887"]
[Annotator "TA"]
[PlyCount "51"]
[EventDate "2024.04.14"]
[EventType "swiss"]
[EventCountry "FRA"]
[SourceTitle "playchess.com"]
[Source "ChessBase"]
[SourceQuality "1"]
[TimeControl "5400+30"]

{[%evp 14,51,22,34,43,33,81,80,78,74,137,137,132,97,218,86,89,64,56,59,121,117,112,118,276,270,375,149,614,483,537,524,981,739,725,719,29988,29989,29996,29992]} 1. e4 {[%emt 0:08:44]} e5 {[%emt 0:00:05]} 2. Nf3 {[%emt 0:00:07]} Nc6 {[%emt 0:00:04]} 3. Bb5 {[%emt 0:00:04]} a6 {[%emt 0:00:07]} 4. Ba4 {[%emt 0:00:03]} Nge7 {[%emt 0:00:08]} 5. O-O {[%emt 0:01:16]} g6 {[%emt 0:00:06]} 6. c3 {[%emt 0:00:02][%cal Bc2c3,Bc3d4,Bd4d5][%mdl 32]} Bg7 {[%emt 0:00:05]} 7. d4 {[%emt 0:00:03]} exd4 {[%emt 0:00:04]} 8. cxd4 {[%emt 0:00:03]} O-O {[%emt 0:00:10]} 9. d5 {[%emt 0:01:57]} Ne5 {[%emt 0:03:38]} (9... Na5 $14) 10. Nxe5 $16 {[%emt 0:02:52]} Bxe5 {[%emt 0:00:07] White is better.} 11. f4 {[%emt 0:00:14]} Bd6 {[%emt 0:00:29]} (11... Bf6 $142) 12. Be3 {[%emt 0:04:57] White is more active.} b5 {[%emt 0:05:53]} 13. Bb3 {[%emt 0:00:58]} Re8 {[%emt 0:12:38]} (13... c5 $16 {is a better defense.}) 14. Bd4 {[%emt 0:16:08]} (14. Bf2 $18 {and White stays clearly on top.}) 14... c5 {[%emt 0:11:37]} 15. Bf6 {[%emt 0:04:54] Kh1 would now be deadly.} Qb6 {[%emt 0:05:00]} 16. Bc2 $36 {[%emt 0:06:42][%mdl 2048] [#] Black must now prevent e5. White has some pressure.} Bb7 {[%emt 0:08:26]} (16... c4+ $14 17. Bd4 Bc5 18. Bxc5 Qxc5+ 19. Kh1 d6) 17. Nc3 {[%emt 0:04:33] Strongly threatening e5.} c4+ {[%emt 0:08:00]} 18. Kh1 {[%emt 0:00:09] Hoping for f5.} Bc5 $2 {[%emt 0:01:11]} (18... Ba3 $16 {was worth a try.}) 19. e5 $18 {[%emt 0:06:15]} Bd4 {[%emt 0:11:11] [#] ...Bxc3 is the strong threat.} 20. Be4 $2 {[%emt 0:09:28]} (20. f5 $1 $18) 20... Nc8 $2 {[%emt 0:08:27][%mdl 8192]} (20... Bxc3 $16 21. bxc3 Qe3) 21. Qf3 {[%emt 0:05:39]} Bxc3 {[%emt 0:12:19]} 22. bxc3 {[%emt 0:00:20] aiming for Qh3.} Qc5 {[%emt 0:01:14] Black is weak on the dark squares} 23. Qh3 {[%emt 0:05:25][%cal Of4f5] And now f5! would win.} Qf8 {[%emt 0:02:23]} 24. f5 {[%emt 0:03:34][%cal Bf4f5,Bf5g6,Bg6g7][%mdl 32] Threatening mate with fxg6.} Nd6 {[%emt 0:02:06]} 25. fxg6 {[%emt 0:00:42][%csl Ge4,Gh3][%cal Rg6h7]} h6 {[%emt 0:05:55]} 26. g7 {[%emt 0:00:09] Weighted Error Value: White=0.41/Black=0.93.  Loses game:     	---       	Black=1      Missed win:     	White=1     	---        Mistake:       	White=1     	Black=5      Inaccurate:     	---       	Black=2      OK:         	White=4     	Black=3      Best:        	White=3     	Black=2} 1-0

[Event "French-ch U16-U18 2024"]
[Site "Agen"]
[Date "2024.04.15"]
[Round "2.18"]
[White "Lecocq, Alexandre"]
[Black "Belkaid, Sohan"]
[Result "0-1"]
[ECO "B52"]
[WhiteElo "1874"]
[BlackElo "2412"]
[Annotator "RC"]
[PlyCount "76"]
[EventDate "2024.04.14"]
[EventType "swiss"]
[EventCountry "FRA"]
[SourceTitle "playchess.com"]
[Source "ChessBase"]
[SourceQuality "1"]
[TimeControl "5400+30"]

1. e4 {[%emt 0:20:08]} c5 {[%emt 0:00:11]} 2. Nf3 {[%emt 0:00:13]} d6 {[%emt 0:00:13]} 3. Bb5+ {[%emt 0:00:10]} Bd7 {[%emt 0:02:11]} 4. Bxd7+ {[%emt 0:00:11]} Qxd7 {[%emt 0:00:06]} 5. c4 {[%emt 0:00:18]} e5 {[%emt 0:02:00]} 6. Nc3 {[%emt 0:01:53]} Nc6 {[%emt 0:00:13]} 7. O-O {[%emt 0:01:12]} Be7 {[%emt 0:00:56]} 8. Ne1 {[%emt 0:04:25]} Bd8 {[%emt 0:04:33]} 9. Nc2 {[%emt 0:08:33]} Nge7 {[%emt 0:07:45]} 10. Ne3 {[%emt 0:01:33]} O-O {[%emt 0:02:13]} 11. Ned5 {[%emt 0:02:40]} Ba5 {[%emt 0:04:26]} 12. a3 {[%emt 0:05:19]} f5 {[%emt 0:10:17]} 13. exf5 {[%emt 0:03:01]} Qxf5 {[%emt 0:04:18]} 14. d3 {[%emt 0:06:35]} Bxc3 {[%emt 0:04:09]} 15. Nxc3 {[%emt 0:00:12]} b6 {[%emt 0:01:09]} 16. Rb1 {[%emt 0:04:53]} Qg6 {[%emt 0:11:33]} 17. Be3 {[%emt 0:05:48]} Rf7 {[%emt 0:07:34]} 18. b4 {[%emt 0:01:47]} Raf8 {[%emt 0:00:41]} 19. Qd2 {[%emt 0:05:30]} Nf5 {[%emt 0:04:00]} 20. Nd5 {[%emt 0:02:55]} Nh4 {[%emt 0:05:48]} 21. f4 {[%emt 0:03:02]} e4 {[%emt 0:13:05]} 22. dxe4 {[%emt 0:02:25]} Qxe4 {[%emt 0:00:10]} 23. Rbc1 {[%emt 0:03:53]} Ne7 {[%emt 0:00:37]} 24. Nxe7+ {[%emt 0:01:43]} Rxe7 {[%emt 0:00:08]} 25. Rfe1 {[%emt 0:00:48]} Rfe8 {[%emt 0:01:11]} 26. Qf2 {[%emt 0:03:34]} Qxg2+ {[%emt 0:01:28]} 27. Qxg2 {[%emt 0:00:34]} Nxg2 {[%emt 0:00:02]} 28. Kxg2 {[%emt 0:00:10]} Rxe3 {[%emt 0:00:02]} 29. Rxe3 {[%emt 0:01:12]} Rxe3 {[%emt 0:00:03]} 30. b5 {[%emt 0:10:53]} Rxa3 {[%emt 0:02:37]} 31. Rd1 {[%emt 0:00:00]} Rc3 {[%emt 0:00:08]} 32. Rxd6 {[%emt 0:00:00]} Rxc4 {[%emt 0:00:05]} 33. Rd8+ {[%emt 0:00:00]} Kf7 {[%emt 0:00:03]} 34. Rd7+ {[%emt 0:00:00]} Kf6 {[%emt 0:00:07]} 35. Rxa7 {[%emt 0:00:00]} Rb4 {[%emt 0:00:06]} 36. Kf3 {[%emt 0:00:00]} Rxb5 {[%emt 0:00:07]} 37. Kg4 {[%emt 0:00:00]} c4 {[%emt 0:00:14]} 38. Rc7 {[%emt 0:04:00]} Rc5 {[%emt 0:00:11]} 0-1

[Event "French-ch U16-U18 2024"]
[Site "Agen"]
[Date "2024.04.15"]
[Round "2.19"]
[White "Bat, Bilguun"]
[Black "Lamothe, Hugo"]
[Result "1-0"]
[ECO "D05"]
[WhiteElo "2360"]
[BlackElo "1874"]
[Annotator "TA"]
[PlyCount "61"]
[EventDate "2024.04.14"]
[EventType "swiss"]
[EventCountry "FRA"]
[SourceTitle "playchess.com"]
[Source "ChessBase"]
[SourceQuality "1"]
[TimeControl "5400+30"]

{[%evp 12,61,10,12,19,29,21,28,43,35,56,70,65,62,84,23,20,7,4,16,24,11,37,40,121,126,274,258,557,540,1028,1016,972,895,1128,1117,1152,1089,1264,1179,1270,1252,1450,1422,2142,2564,2404,2019,29985,29986,29985,29985]} 1. d4 {[%emt 0:00:06]} Nf6 {[%emt 1:31:00]} 2. Nf3 {[%emt 0:00:15]} e6 {[%emt 0:00:00]} 3. e3 {[%emt 0:00:24]} d5 {[%emt 0:00:00]} 4. Bd3 {[%emt 0:00:13]} c5 {[%emt 0:00:00]} 5. c3 {[%emt 0:00:16]} Bd6 {[%emt 0:00:00]} 6. Nbd2 {[%emt 0:00:18]} Nbd7 {[%emt 0:00:00]} 7. O-O {[%emt 0:00:15]} b6 {[%emt 0:00:00]} 8. e4 {[%emt 0:02:33]} cxd4 {[%emt 0:00:00]} 9. cxd4 {[%emt 0:00:42] aiming for e5.} dxe4 {[%emt 0:00:00] White has an edge.} 10. Nxe4 {[%emt 0:00:10]} Nxe4 {[%emt 0:00:00]} 11. Bxe4 {[%emt 0:00:14]} Rb8 {[%emt 0:00:00]} 12. Bg5 $36 {[%emt 0:00:18][%mdl 2048] White has some pressure.} Nf6 {[%emt 0:00:00]} 13. Qc2 {[%emt 0:19:28]} (13. Bc6+ $16 Bd7 14. Bxd7+ Qxd7 15. Bxf6 gxf6 16. d5) 13... Bd7 $11 {[%emt 0:00:00]} 14. Bd3 {[%emt 0:03:49]} Rc8 {[%emt 0:00:00]} 15. Qe2 {[%emt 0:01:05]} h6 {[%emt 0:00:00][%cal Bh7h6,Bh6h5,Bh5h4][%mdl 32]} 16. Bh4 {[%emt 0:00:13]} g5 {[%emt 0:00:00]} 17. Bg3 {[%emt 0:00:31]} Bc6 {[%emt 0:00:00]} (17... Bxg3 $14 18. fxg3 O-O) 18. Ne5 $16 {[%emt 0:02:15] And now Nxc6 would win.} Bd5 {[%emt 0:00:00] Black cannot hold the game after this.} (18... Bb7 $16 {was called for.} 19. Rad1 O-O) 19. f4 $18 {[%emt 0:01:29]} g4 {[%emt 0:00:00]} (19... Bxe5 {might work better.} 20. dxe5 (20. fxe5 Ng8 $18) 20... Nd7) 20. f5 {[%emt 0:00:51]} (20. Nxg4 Nxg4 21. Qxg4 Qf6 $11) 20... h5 {[%emt 0:01:52]} 21. fxe6 {[%emt 0:01:58]} Bxe6 {[%emt 0:00:04] [#]} 22. d5 $1 {[%emt 0:02:10][%mdl 512]} Bc5+ {[%emt 0:02:27]} (22... Bxe5 23. Qxe5) 23. Kh1 {[%emt 0:00:15]} Qxd5 {[%emt 0:03:36]} 24. Rxf6 {[%emt 0:00:31]} h4 {[%emt 0:00:02]} 25. Bf4 {[%emt 0:01:25][%cal Od3c4] Bc4! would now be deadly.} h3 {[%emt 0:02:26]} 26. Be4 {[%emt 0:01:22]} ({And not} 26. Nxg4 hxg2+ 27. Qxg2 Qxd3 (27... Qxg2+ 28. Kxg2 Bxg4 29. Re1+ Be6 30. Bf5 $14) 28. Rxe6+ fxe6 $11) 26... hxg2+ {[%emt 0:00:12]} 27. Bxg2 {[%emt 0:00:17][%cal Oe5f7] Black must now prevent Nxf7!} Qd8 {[%emt 0:00:44] [#]} 28. Rxe6+ $1 {[%emt 0:01:06]} fxe6 {[%emt 0:00:15]} 29. Ng6 {[%emt 0:00:05]} Kf7 {[%emt 0:01:32]} 30. Nxh8+ {[%emt 0:00:26]} Qxh8 {[%emt 0:00:02]} 31. Rf1 {[%emt 0:00:11] Weighted Error Value: White=0.09 (flawless) /Black=0.90.  Mistake:       	White=1     	Black=3      Inaccurate:     	---       	Black=2      OK:         	White=6     	Black=6      Best:        	White=2     	---} 1-0

[Event "French-ch U16-U18 2024"]
[Site "Agen"]
[Date "2024.04.15"]
[Round "2.20"]
[White "Pichon, Ewen"]
[Black "Casanave, Matthieu"]
[Result "1-0"]
[ECO "E73"]
[WhiteElo "2252"]
[BlackElo "1861"]
[Annotator "TA"]
[PlyCount "76"]
[EventDate "2024.04.14"]
[EventType "swiss"]
[EventCountry "FRA"]
[SourceTitle "playchess.com"]
[Source "ChessBase"]
[SourceQuality "1"]
[TimeControl "5400+30"]

{[%evp 13,76,40,40,33,39,48,40,26,30,26,16,9,12,9,11,5,15,2,41,46,44,49,35,38,76,66,120,98,122,80,97,101,105,78,73,66,56,50,51,43,51,65,66,58,64,66,73,33,180,167,174,159,194,163,225,183,214,212,512,518,505,468,738,724,1010]} 1. d4 {[%emt 0:00:31]} Nf6 {[%emt 0:00:05]} 2. c4 {[%emt 0:00:07]} g6 {[%emt 0:00:21]} 3. Nc3 {[%emt 0:00:23]} Bg7 {[%emt 0:00:18]} 4. e4 {[%emt 0:00:30]} O-O {[%emt 0:00:29]} 5. Be2 {[%emt 0:00:26]} d6 {[%emt 0:02:47]} 6. Be3 {[%emt 0:00:47]} c5 {[%emt 0:05:09]} 7. d5 {[%emt 0:00:07]} e6 {[%emt 0:00:20]} 8. Nf3 {[%emt 0:00:19]} exd5 {[%emt 0:00:39]} 9. cxd5 {[%emt 0:00:02]} Nbd7 {[%emt 0:00:56][%cal Ob7b5,Bb8d7,Bd7e5,Be5f7][%mdl 32]} 10. Nd2 {[%emt 0:06:33] White is slightly better.} Ne5 {[%emt 0:02:27]} 11. h3 {[%emt 0:01:26] Inhibits Nfg4.} Ne8 $1 {[%emt 0:01:38]} 12. O-O {[%emt 0:13:07]} f5 {[%emt 0:01:35]} 13. f4 {[%emt 0:07:39]} Nf7 {[%emt 0:07:12]} 14. Bd3 $36 {[%emt 0:07:08][%mdl 2048] White has good play.} a6 {[%emt 0:16:46]} 15. a4 {[%emt 0:01:28][%cal Ba2a4,Ba4a5][%mdl 32]} Rb8 {[%emt 0:01:44]} 16. exf5 {[%emt 0:01:20]} Bxf5 {[%emt 0:01:33]} 17. Bxf5 {[%emt 0:00:14]} gxf5 {[%emt 0:00:01]} 18. a5 {[%emt 0:06:29]} Kh8 {[%emt 0:22:06]} 19. Bf2 {[%emt 0:05:25]} Bf6 {[%emt 0:17:03]} (19... Nc7 $14) 20. Re1 {[%emt 0:04:19]} Bh4 {[%emt 0:06:10]} 21. Qe2 {[%emt 0:02:08]} Bxf2+ {[%emt 0:00:41]} 22. Qxf2 {[%emt 0:00:02]} Ng7 {[%emt 0:05:15] Wards off Re6} 23. Nc4 {[%emt 0:07:15] White is much more active. The black rooks are passive.} Qf6 {[%emt 0:00:42] Repels Re6} 24. Nb6 {[%emt 0:03:23]} Rbd8 {[%emt 0:01:50] Prevents Nd7} 25. Rad1 {[%emt 0:01:40]} Rfe8 {[%emt 0:00:52]} 26. Nc4 {[%emt 0:01:39]} Rxe1+ {[%emt 0:01:29]} 27. Rxe1 {[%emt 0:00:10]} Re8 {[%emt 0:00:20]} 28. Rxe8+ {[%emt 0:03:59]} Nxe8 {[%emt 0:00:01][%cal Bg7e8,Be8c7,Bc7b5][%mdl 32]} 29. Qe3 {[%emt 0:00:26]} Nc7 {[%emt 0:01:45]} 30. Nb6 {[%emt 0:03:21]} Qd4 {[%emt 0:02:24] Loses the game.} (30... h5 $14) 31. Qxd4+ $18 {[%emt 0:02:56]} cxd4 {[%emt 0:00:01][%mdl 4096] Endgame. KNN-KNN} 32. Ne2 {[%emt 0:00:05]} d3 {[%emt 0:01:09][%cal Oc7b5] [#] ...Nb5! is the strong threat.} 33. Nc3 {[%emt 0:00:04]} d2 {[%emt 0:00:28]} (33... Ne8 $142 34. Kf2 Nf6) 34. Kf2 {[%emt 0:00:23]} Nb5 {[%emt 0:00:21] ...Nxc3 would now be deadly.} 35. Ke2 {[%emt 0:00:37] Black must now prevent Nxb5.} Nd4+ {[%emt 0:00:39]} (35... Nc7 36. Kxd2 Kg8) 36. Kxd2 {[%emt 0:00:02] White is clearly winning.} Nb3+ {[%emt 0:00:38]} 37. Kc2 {[%emt 0:00:04]} Nc5 {[%emt 0:00:13]} (37... Nd4+ $142 38. Kd3 Nb3) 38. b4 {[%emt 0:22:56]} Kg7 {[%emt 0:01:23] Weighted Error Value: White=0.09 (flawless) /Black=0.39.  Mistake:       	---       	Black=5      Inaccurate:     	White=2     	Black=3      OK:         	White=9     	Black=6      Best:        	White=3     	Black=1      Strong:       	---       	Black=1} 1-0

[Event "French-ch U16-U18 2024"]
[Site "Agen"]
[Date "2024.04.15"]
[Round "3.1"]
[White "Famel, Diane"]
[Black "Bellahcene, Jenna"]
[Result "1-0"]
[ECO "D36"]
[WhiteElo "1888"]
[BlackElo "1766"]
[Annotator "NA RC"]
[PlyCount "105"]
[EventDate "2024.04.14"]
[EventType "swiss"]
[EventCountry "FRA"]
[SourceTitle "playchess.com"]
[Source "ChessBase"]
[SourceQuality "1"]
[TimeControl "5400+30"]

1. d4 {[%emt 0:06:27]} d5 {[%emt 0:00:09]} 2. c4 {[%emt 0:00:05]} e6 {[%emt 0:00:09]} 3. Nc3 {[%emt 0:00:17]} Nf6 {[%emt 0:00:09]} 4. cxd5 {[%emt 0:00:09]} exd5 {[%emt 0:00:07]} 5. Bg5 {[%emt 0:00:06]} Be7 {[%emt 0:00:22]} 6. e3 {[%emt 0:00:08]} c6 {[%emt 0:00:27]} 7. Bd3 {[%emt 0:00:11]} Nbd7 {[%emt 0:00:17]} 8. Nge2 {[%emt 0:00:10]} O-O {[%emt 0:01:57]} 9. Qc2 {[%emt 0:00:33]} h6 {[%emt 0:00:41]} 10. Bh4 {[%emt 0:00:49]} Re8 {[%emt 0:01:20]} 11. O-O {[%emt 0:02:21]} Ne4 {[%emt 0:02:41]} 12. Bxe7 {[%emt 0:04:17]} Qxe7 {[%emt 0:00:08]} 13. Bxe4 {[%emt 0:00:34]} dxe4 {[%emt 0:00:12]} 14. d5 {[%emt 0:04:13]} Nf6 {[%emt 0:07:55]} 15. dxc6 {[%emt 0:03:35]} bxc6 {[%emt 0:00:24]} 16. Rfd1 {[%emt 0:13:03]} Qe5 {[%emt 0:13:36]} 17. h3 {[%emt 0:09:02]} g5 {[%emt 0:12:30]} 18. Ng3 {[%emt 0:04:42]} Ba6 {[%emt 0:09:46]} 19. Na4 {[%emt 0:05:46]} Bd3 {[%emt 0:09:15]} 20. Qc5 {[%emt 0:03:25]} Rab8 {[%emt 0:02:49]} 21. Qxe5 {[%emt 0:04:52]} Rxe5 {[%emt 0:00:03]} 22. Rac1 {[%emt 0:00:22]} Rb4 {[%emt 0:15:34]} 23. Rxc6 {[%emt 0:08:20]} Kg7 {[%emt 0:02:06]} 24. b3 {[%emt 0:03:18]} h5 {[%emt 0:03:21]} 25. Rc5 {[%emt 0:02:12]} Rb5 {[%emt 0:01:14]} 26. Rdc1 {[%emt 0:02:04]} h4 {[%emt 0:00:41]} 27. Rxe5 {[%emt 0:00:48]} Rxe5 {[%emt 0:00:01]} 28. Nf1 {[%emt 0:00:18]} g4 {[%emt 0:07:32]} 29. hxg4 {[%emt 0:01:09]} Nxg4 {[%emt 0:00:13]} 30. Rc5 {[%emt 0:00:27]} Rxc5 {[%emt 0:00:37]} 31. Nxc5 {[%emt 0:00:02]} Bc2 {[%emt 0:02:22]} 32. b4 {[%emt 0:05:01]} Ne5 {[%emt 0:01:11]} 33. Nd2 {[%emt 0:02:39]} f5 {[%emt 0:00:55]} 34. Ne6+ {[%emt 0:01:23]} Kf6 {[%emt 0:00:26]} 35. Nd4 {[%emt 0:00:47]} Bd3 {[%emt 0:00:31]} 36. a4 {[%emt 0:01:12]} Nd7 {[%emt 0:03:30]} 37. N2b3 {[%emt 0:07:02]} Bc4 {[%emt 0:01:33]} 38. Na5 {[%emt 0:00:45]} Nb6 {[%emt 0:01:22]} 39. Nxc4 {[%emt 0:00:56]} Nxc4 {[%emt 0:00:01]} 40. Nc6 {[%emt 0:00:40]} Nb6 {[%emt 0:00:09]} 41. a5 {[%emt 0:01:37]} Nc8 {[%emt 0:00:05]} 42. b5 {[%emt 0:01:30]} Ke6 {[%emt 0:01:15]} 43. a6 {[%emt 0:01:32]} Kd6 {[%emt 0:00:49]} 44. Nxa7 {[%emt 0:00:38]} Nb6 {[%emt 0:00:40]} 45. Kh2 {[%emt 0:01:37]} Na8 {[%emt 0:00:21]} 46. Nc6 {[%emt 0:00:57]} Kc5 {[%emt 0:00:10]} 47. Nd4 {[%emt 0:00:19]} f4 {[%emt 0:00:12]} 48. Ne6+ {[%emt 0:00:24]} Kxb5 {[%emt 0:00:47]} 49. Nxf4 {[%emt 0:00:07]} Kxa6 {[%emt 0:00:15]} 50. Kh3 {[%emt 0:00:09]} Kb6 {[%emt 0:00:20]} 51. Kxh4 {[%emt 0:00:17]} Kc6 {[%emt 0:00:03]} 52. Kg5 {[%emt 0:00:12]} Nc7 {[%emt 0:00:13]} 53. Kf5 {[%emt 0:00:11]} 1-0

[Event "French-ch U16-U18 2024"]
[Site "Agen"]
[Date "2024.04.15"]
[Round "3.2"]
[White "Lavilledieu, Lily-Mei"]
[Black "Darrort, Nahia"]
[Result "1-0"]
[ECO "E43"]
[WhiteElo "1783"]
[BlackElo "1752"]
[Annotator "NA RC"]
[PlyCount "81"]
[EventDate "2024.04.14"]
[EventType "swiss"]
[EventCountry "FRA"]
[SourceTitle "playchess.com"]
[Source "ChessBase"]
[SourceQuality "1"]
[TimeControl "5400+30"]

1. d4 {[%emt 0:01:07]} Nf6 {[%emt 0:00:11]} 2. c4 {[%emt 0:00:07]} e6 {[%emt 0:00:04]} 3. Nc3 {[%emt 0:00:24]} Bb4 {[%emt 0:00:18]} 4. Qc2 {[%emt 0:00:07]} b6 {[%emt 0:00:49]} 5. e3 {[%emt 0:00:19]} Bb7 {[%emt 0:00:21]} 6. Nf3 {[%emt 0:01:13]} O-O {[%emt 0:00:28]} 7. Bd3 {[%emt 0:00:21]} d6 {[%emt 0:00:43]} 8. Bd2 {[%emt 0:01:47]} Nbd7 {[%emt 0:01:48]} 9. a3 {[%emt 0:01:12]} Bxc3 {[%emt 0:00:19]} 10. Bxc3 {[%emt 0:00:22]} c5 {[%emt 0:01:46]} 11. O-O {[%emt 0:03:53]} Re8 {[%emt 0:02:56]} 12. Rfd1 {[%emt 0:05:18]} Qc7 {[%emt 0:03:12]} 13. Be2 {[%emt 0:09:43]} Ne4 {[%emt 0:06:04]} 14. b4 {[%emt 0:11:40]} Nxc3 {[%emt 0:04:15]} 15. Qxc3 {[%emt 0:00:20]} Nf6 {[%emt 0:01:58]} 16. Rac1 {[%emt 0:15:10]} e5 {[%emt 0:02:48]} 17. d5 {[%emt 0:10:10]} Bc8 {[%emt 0:04:16]} 18. Nd2 {[%emt 0:04:21]} Bf5 {[%emt 0:02:25]} 19. f3 {[%emt 0:04:23]} e4 {[%emt 0:03:41]} 20. f4 {[%emt 0:01:37]} h5 {[%emt 0:08:53]} 21. Nf1 {[%emt 0:02:28]} Bg4 {[%emt 0:09:50]} 22. Qe1 {[%emt 0:02:40]} Qd7 {[%emt 0:04:52]} 23. Bxg4 {[%emt 0:04:14]} Qxg4 {[%emt 0:01:18]} 24. h3 {[%emt 0:00:13]} Qf5 {[%emt 0:04:46]} 25. Qh4 {[%emt 0:00:56]} Rac8 {[%emt 0:10:06]} 26. Ng3 {[%emt 0:04:33]} Qg6 {[%emt 0:00:45]} 27. b5 {[%emt 0:01:09]} Ra8 {[%emt 0:01:39]} 28. a4 {[%emt 0:01:55]} a6 {[%emt 0:01:28]} 29. Ra1 {[%emt 0:00:31]} a5 {[%emt 0:01:33]} 30. Rf1 {[%emt 0:00:22]} Ra7 {[%emt 0:01:36]} 31. Kf2 {[%emt 0:02:03]} Rc7 {[%emt 0:02:32]} 32. Rh1 {[%emt 0:01:47]} Kf8 {[%emt 0:03:56]} 33. Rae1 {[%emt 0:00:56]} Ra7 {[%emt 0:03:16]} 34. Reg1 {[%emt 0:02:04]} Raa8 {[%emt 0:02:13]} 35. Ke2 {[%emt 0:01:09]} Rab8 {[%emt 0:02:19]} 36. Kd2 {[%emt 0:00:59]} Ra8 {[%emt 0:01:31]} 37. Ne2 {[%emt 0:01:54]} Ke7 {[%emt 0:04:42]} 38. g4 {[%emt 0:04:49]} Rh8 {[%emt 0:01:58]} 39. f5 {[%emt 0:00:55]} Qh7 {[%emt 0:01:40]} 40. g5 {[%emt 0:00:34]} Nxd5 {[%emt 0:00:43]} 41. g6+ {[%emt 0:00:29]} 1-0

[Event "French-ch U16-U18 2024"]
[Site "Agen"]
[Date "2024.04.15"]
[Round "3.3"]
[White "Alsaied, Zeina"]
[Black "Pereira-Davoine, Alana"]
[Result "1/2-1/2"]
[ECO "D52"]
[WhiteElo "1735"]
[BlackElo "1780"]
[Annotator "NA RC"]
[PlyCount "90"]
[EventDate "2024.04.14"]
[EventType "swiss"]
[EventCountry "FRA"]
[SourceTitle "playchess.com"]
[Source "ChessBase"]
[SourceQuality "1"]
[TimeControl "5400+30"]

1. d4 {[%emt 0:00:04]} d5 {[%emt 0:00:12]} 2. c4 {[%emt 0:02:32]} e6 {[%emt 0:00:22]} 3. Nf3 {[%emt 0:00:29]} Nf6 {[%emt 0:00:52]} 4. Nc3 {[%emt 0:03:37]} c6 {[%emt 0:01:03]} 5. Bg5 {[%emt 0:05:04]} Nbd7 {[%emt 0:00:27]} 6. e3 {[%emt 0:01:55]} Qa5 {[%emt 0:00:42]} 7. a3 {[%emt 0:04:43]} Ne4 {[%emt 0:01:11]} 8. Qc2 {[%emt 0:04:01]} e5 {[%emt 0:20:55]} 9. cxd5 {[%emt 0:11:07]} cxd5 {[%emt 0:05:04]} 10. Be2 {[%emt 0:02:16]} Nxg5 {[%emt 0:06:29]} 11. Nxg5 {[%emt 0:00:50]} Be7 {[%emt 0:02:09]} 12. Nf3 {[%emt 0:01:48]} e4 {[%emt 0:03:23]} 13. Nd2 {[%emt 0:00:50]} O-O {[%emt 0:07:42]} 14. O-O {[%emt 0:01:13]} Nf6 {[%emt 0:10:26]} 15. f3 {[%emt 0:03:24]} Qc7 {[%emt 0:12:22]} 16. fxe4 {[%emt 0:03:25]} dxe4 {[%emt 0:00:53]} 17. Ndxe4 {[%emt 0:06:11]} Nd5 {[%emt 0:05:36]} 18. Qd3 {[%emt 0:06:58]} Be6 {[%emt 0:03:10]} 19. Rac1 {[%emt 0:03:34]} Qd8 {[%emt 0:01:44]} 20. Nc5 {[%emt 0:05:43]} Bg5 {[%emt 0:05:51]} 21. Nxd5 {[%emt 0:03:34]} Bxd5 {[%emt 0:00:10]} 22. Bf3 {[%emt 0:02:37]} Re8 {[%emt 0:01:20]} 23. Rce1 {[%emt 0:03:14]} b6 {[%emt 0:02:29]} 24. Ne4 {[%emt 0:03:41]} Bh6 {[%emt 0:02:10]} 25. Ng3 {[%emt 0:02:25]} Rc8 {[%emt 0:00:47]} 26. Bxd5 {[%emt 0:01:21]} Qxd5 {[%emt 0:00:05]} 27. Rf5 {[%emt 0:02:52]} Qd7 {[%emt 0:01:40]} 28. Rh5 {[%emt 0:02:54]} Qg4 {[%emt 0:02:04]} 29. Qf5 {[%emt 0:03:45]} Qxf5 {[%emt 0:01:40]} 30. Nxf5 {[%emt 0:00:09]} Bf4 {[%emt 0:00:19]} 31. Rh4 {[%emt 0:03:45]} Bb8 {[%emt 0:00:12]} 32. Rg4 {[%emt 0:00:37]} g6 {[%emt 0:00:13]} 33. Ng3 {[%emt 0:01:25]} Rc2 {[%emt 0:00:50]} 34. Nh5 {[%emt 0:02:15]} f5 {[%emt 0:00:38]} 35. Rg5 {[%emt 0:02:04]} Kf7 {[%emt 0:00:14]} 36. Ng3 {[%emt 0:01:22]} Kf6 {[%emt 0:00:18]} 37. h4 {[%emt 0:00:40]} h6 {[%emt 0:00:05]} 38. e4 {[%emt 0:00:31]} hxg5 {[%emt 0:00:08]} 39. e5+ {[%emt 0:00:15]} Ke6 {[%emt 0:00:24]} 40. h5 {[%emt 0:00:23]} gxh5 {[%emt 0:00:16]} 41. Nxh5 {[%emt 0:00:02]} Kf7 {[%emt 0:00:56]} 42. Ng3 {[%emt 0:00:56]} Kg6 {[%emt 0:00:22]} 43. Ne2 {[%emt 0:00:57]} Rxb2 {[%emt 0:00:28]} 44. Nc3 {[%emt 0:00:30]} Rd2 {[%emt 0:00:21]} 45. Nb5 {[%emt 0:00:27]} a6 {[%emt 0:00:15]} 1/2-1/2